bitfinex/quotes_ETHUSD_20260214
["timestamp","ask_amount","ask_price","bid_price","bid_amount"]
[1771056189076,1.21094696,2064.5,2063.8,0.59888151]
[1771056189277,1.21094696,2064.5,2063.8,0.73768481]
[1771056189814,1.21094696,2064.5,2063.9,0.1388033]
[1771056190186,1.21094696,2064.5,2064.0,0.1388033]
[1771056190582,1.21094696,2064.5,2064.1,0.1388033]
[1771056190812,1.21094696,2064.5,2064.0,0.1388033]
[1771056190983,7.33037974,2064.7,2064.0,0.73768481]
[1771056191184,7.33037974,2064.7,2064.1,0.1388033]
[1771056191510,1.21078877,2064.8,2064.2,0.59888151]
[1771056191710,1.21078877,2064.8,2064.2,0.73768481]
[1771056192115,1.21075306,2064.9,2064.3,0.73768481]
[1771056192299,1.21075306,2064.9,2064.3,0.59888151]
[1771056192613,1.21075306,2064.9,2064.0,0.59888151]
[1771056192804,1.76705669,2064.9,2064.3,0.1388033]
[1771056193006,1.21075306,2064.9,2064.1,0.73768481]
[1771056193438,1.21075306,2064.9,2064.1,1.94886167]
[1771056193589,1.21075306,2064.9,2064.2,0.1388033]
[1771056193920,1.21185306,2064.9,2064.2,0.1388033]
[1771056194102,1.21185306,2064.9,2064.3,0.59888151]
[1771056195117,1.21185306,2064.9,2064.4,0.1388033]
[1771056195311,1.21185306,2064.9,2064.4,0.73768481]
[1771056195501,0.0011,2064.9,2064.4,0.73768481]
[1771056196319,1.42830363,2065.3,2064.5,0.59888151]
[1771056196320,2.08250045,2065.3,2064.5,0.59888151]
[1771056196486,4.8412828,2065.6,2064.5,0.73768481]
[1771056196487,1.21030209,2065.6,2064.5,0.73768481]
[1771056196687,4.84398096,2065.7,2064.5,0.73768481]
[1771056196688,0.003,2065.7,2065.1,0.59888151]
[1771056197095,1.21009617,2066.0,2065.3,0.59888151]
[1771056197617,0.55630363,2065.9,2064.5,2.68182194]
[1771056197820,0.55630363,2065.9,2064.6,0.73468481]
[1771056198454,0.55630363,2065.9,2064.8,0.59888151]
[1771056198637,0.55630363,2065.9,2064.9,0.1358033]
[1771056199036,0.55630363,2065.7,2064.6,0.59888151]
[1771056199344,0.55630363,2065.7,2064.7,0.1358033]
[1771056199506,1.21036068,2065.5,2064.7,0.73468481]
[1771056199818,1.21036068,2065.5,2064.1,0.59888151]
[1771056199819,0.55630363,2065.4,2064.1,0.59888151]
[1771056200523,1.21036068,2065.5,2064.1,0.59888151]
[1771056200725,3.358,2065.4,2064.1,0.59888151]
[1771056201125,1.21036068,2065.5,2064.5,0.59888151]
[1771056201426,3.22236068,2065.5,2064.5,0.59888151]
[1771056201623,3.22236068,2065.5,2064.5,1.80978046]
[1771056202204,3.22236068,2065.5,2064.6,0.59888151]
[1771056202825,1.21036068,2065.5,2064.8,0.59888151]
[1771056203528,4.84144274,2065.6,2064.5,0.59888151]
[1771056204105,4.84144274,2065.7,2064.6,0.59888151]
[1771056204502,7.32744274,2065.7,2064.6,0.59888151]
[1771056204702,0.55630363,2065.6,2064.6,0.59888151]
[1771056206612,1.21036068,2065.5,2064.6,0.59888151]
[1771056206938,1.76666431,2065.5,2064.3,0.59888151]
[1771056207343,1.76666431,2065.5,2064.0,0.59888151]
[1771056207344,0.55630363,2065.4,2064.0,0.59888151]
[1771056207820,0.55630363,2065.4,2063.8,0.001]
[1771056208009,0.55630363,2065.4,2063.8,1.81122812]
[1771056208552,0.55630363,2065.0,2063.8,0.59988151]
[1771056208705,0.55630363,2064.8,2063.8,0.59988151]
[1771056208906,0.55630363,2064.8,2063.8,0.001]
[1771056210510,0.55630363,2064.6,2063.8,0.001]
[1771056211130,0.55630363,2064.6,2063.6,0.001]
[1771056212133,0.55630363,2064.6,2063.3,0.001]
[1771056212361,1.21082966,2064.7,2063.3,0.001]
[1771056212362,0.57181184,2064.4,2063.3,0.001]
[1771056212705,0.57181184,2064.2,2063.3,0.001]
[1771056212932,3.358,2064.1,2063.3,0.001]
[1771056213238,0.57181184,2064.0,2063.3,0.001]
[1771056214015,0.57181184,2064.2,2063.3,0.001]
[1771056214213,2.486,2064.1,2063.3,0.001]
[1771056214824,1.21124031,2064.0,2063.3,0.001]
[1771056216337,1.78305215,2064.0,2063.3,0.001]
[1771056216830,0.57181184,2063.7,2063.0,0.001]
[1771056217140,0.57181184,2063.7,2062.5,0.57081638]
[1771056217722,0.57181184,2063.7,2062.2,0.57081638]
[1771056218839,1.21147509,2063.6,2062.4,0.57081638]
[1771056219010,0.872,2063.5,2062.4,0.57081638]
[1771056219442,1.44381184,2063.5,2062.4,0.57081638]
[1771056220242,1.44381184,2063.5,2063.0,0.001]
[1771056220988,1.21129899,2063.9,2063.0,0.5623327]
[1771056225253,1.79364441,2063.9,2063.0,0.001]
[1771056225762,0.58234542,2063.8,2063.0,0.001]
[1771056226625,1.21129899,2063.9,2063.0,0.5623327]
[1771056228558,1.21129899,2063.9,2063.1,0.5613327]
[1771056230455,1.79364441,2063.9,2063.0,0.001]
[1771056230939,0.58234542,2063.8,2063.0,0.001]
[1771056231143,0.58234542,2063.8,2062.5,0.872]
[1771056231340,1.21141638,2063.7,2062.5,0.872]
[1771056231658,0.58234542,2063.6,2062.5,0.872]
[1771056231847,0.58234542,2063.6,2062.5,1.4333327]
[1771056232672,0.58234542,2063.6,2062.5,0.5613327]
[1771056232873,0.58234542,2063.6,2062.7,0.001]
[1771056233368,0.58234542,2063.4,2062.5,0.001]
[1771056233571,0.58234542,2063.2,2062.5,0.001]
[1771056235866,1.21176869,2063.1,2062.5,0.001]
[1771056237956,4.84707479,2063.2,2062.5,0.5623327]
[1771056238154,7.33507479,2063.2,2062.5,0.001]
[1771056239549,7.91742021,2063.2,2062.5,0.001]
[1771056239878,7.33507479,2063.2,2062.5,0.001]
[1771056242549,7.89515477,2063.2,2062.5,0.001]
[1771056243573,0.56007998,2063.1,2062.5,0.001]
[1771056244270,7.33507479,2063.2,2062.5,0.001]
[1771056244765,0.56007998,2063.1,2062.5,0.001]
[1771056245149,0.56007998,2063.1,2062.1,0.58289519]
[1771056246184,1.21182743,2063.0,2062.2,0.001]
[1771056247672,1.77190741,2063.0,2062.2,0.001]
[1771056247977,0.56007998,2062.9,2062.1,0.58289519]
[1771056248179,1.21194492,2062.8,2062.1,0.58289519]
[1771056248772,1.7720249,2062.8,2062.0,0.001]
[1771056248979,1.21194492,2062.8,2062.0,0.58389519]
[1771056249286,1.21194492,2062.8,2062.1,0.58289519]
[1771056249493,3.69994492,2062.8,2062.1,0.58289519]
[1771056249662,3.69994492,2062.8,2062.0,0.001]
[1771056249991,0.56007998,2062.7,2062.0,0.001]
[1771056250291,1.21206244,2062.6,2062.0,0.001]
[1771056251291,1.21206244,2062.6,2062.0,0.58389519]
[1771056252174,1.21194492,2062.8,2062.0,0.58389519]
[1771056253762,1.7720249,2062.8,2062.0,0.001]
[1771056255194,0.56007998,2062.4,2061.1,30.0]
[1771056255367,0.56007998,2062.7,2061.4,0.22787082]
[1771056255567,2.488,2062.4,2061.4,0.22787082]
[1771056255868,7.59194492,2062.8,2061.5,0.22787082]
[1771056255869,8.46494492,2062.8,2061.5,0.22787082]
[1771056256089,2.488,2062.7,2061.5,0.22787082]
[1771056256270,1.21206244,2062.6,2061.9,0.28392667]
[1771056256471,7.33584042,2063.2,2061.9,0.28392667]
[1771056256792,7.8959204,2063.2,2061.9,0.28392667]
[1771056257009,0.56007998,2063.1,2061.9,0.28392667]
[1771056259091,0.56007998,2062.9,2061.9,1.49639754]
[1771056259296,0.56007998,2062.9,2061.9,0.28392667]
[1771056259497,0.56007998,2062.9,2061.9,1.49639177]
[1771056260588,0.56007998,2062.9,2062.1,1.5]
[1771056261099,1.21194492,2062.8,2062.1,1.5]
[1771056261393,1.21194492,2062.8,2062.1,1.21234663]
[1771056261594,1.21194492,2062.8,2062.2,0.27339324]
[1771056262705,1.21187066,2063.0,2062.2,0.27339324]
[1771056263701,4.84730974,2063.1,2062.3,1.48145674]
[1771056264405,1.21165123,2063.3,2062.4,0.26713845]
[1771056265213,2.08573418,2063.4,2062.4,0.26713845]
[1771056265416,2.08573418,2063.4,2062.6,1.5]
[1771056265602,2.08573418,2063.4,2062.7,0.2650643]
[1771056266118,2.08573418,2063.4,2062.9,0.2650643]
[1771056266315,0.8741,2063.4,2062.9,0.2650643]
[1771056266513,2.08569567,2063.4,2062.9,0.2650643]
[1771056269214,2.08569567,2063.4,2062.9,1.47694089]
[1771056269524,2.08569567,2063.4,2062.9,0.2650643]
[1771056270186,2.08569567,2063.4,2062.7,0.25682114]
[1771056270782,1.21269567,2063.4,2062.8,0.25477363]
[1771056271489,0.57017569,2063.3,2062.6,1.5]
[1771056271791,0.57017569,2063.3,2062.5,0.25273145]
[1771056273117,1.21170996,2063.2,2062.5,1.46482974]
[1771056273281,1.21170996,2063.2,2062.5,0.25273145]
[1771056275115,0.0011,2063.4,2062.7,0.24663629]
[1771056275613,0.57127569,2063.4,2062.7,1.5]
[1771056276517,0.0011,2063.4,2062.8,0.24259895]
[1771056276894,0.57127569,2063.4,2062.7,1.5]
[1771056277092,1.21165123,2063.3,2062.7,2.71198526]
[1771056280393,1.21165123,2063.3,2062.7,1.5]
[1771056282703,1.77621328,2063.3,2062.7,1.5]
[1771056286526,1.77621328,2063.3,2062.7,2.71199496]
[1771056288549,0.0011,2063.4,2062.8,1.43069291]
[1771056289828,0.0011,2063.4,2062.9,0.2168561]
[1771056290408,0.0011,2063.6,2063.0,0.21491118]
[1771056290719,1.77582624,2064.0,2063.0,0.21491118]
[1771056290720,0.25394623,2064.1,2063.8,0.21381118]
[1771056290921,0.10983514,2064.1,2064.0,0.21381118]
[1771056291115,1.21083975,2064.7,2064.0,0.21381118]
[1771056291315,1.21108819,2064.3,2063.4,0.21381118]
[1771056291513,0.56756205,2064.2,2063.3,0.21187123]
[1771056291736,0.003,2064.2,2063.3,0.21187123]
[1771056292836,0.003,2064.2,2063.4,1.42593747]
[1771056293208,0.003,2064.2,2063.5,1.5]
[1771056295135,0.003,2064.2,2063.5,2.92195458]
[1771056296030,0.003,2064.2,2063.5,2.71153352]
[1771056296031,0.56756205,2064.2,2063.5,2.71153352]
[1771056296840,0.003,2064.2,2063.5,2.71153352]
[1771056297012,0.003,2064.2,2063.5,2.71153139]
[1771056297537,0.56756205,2064.2,2063.5,1.5]
[1771056298006,0.56756205,2064.2,2063.5,2.71153358]
[1771056299536,1.21118162,2064.1,2063.5,2.71153358]
[1771056300447,1.21118162,2064.1,2063.6,0.19895327]
[1771056300620,1.21412412,2064.2,2063.5,1.5]
[1771056300945,0.56456205,2064.1,2063.5,1.5]
[1771056301720,0.55628083,2063.9,2063.5,1.5]
[1771056302017,0.55628083,2063.9,2063.2,0.001]
[1771056302423,0.55628083,2063.9,2063.2,1.21270952]
[1771056302630,0.55628083,2063.9,2063.2,0.001]
[1771056304756,0.55628083,2063.7,2063.2,0.001]
[1771056306250,2.487,2063.6,2063.2,0.001]
[1771056306429,1.21135768,2063.8,2063.2,0.001]
[1771056306633,4.25463851,2063.8,2063.2,0.001]
[1771056307238,0.55628083,2063.7,2063.2,0.001]
[1771056308758,1.21147509,2063.6,2063.2,0.001]
[1771056310637,1.76775592,2063.6,2063.2,0.001]
[1771056311357,0.55628083,2063.5,2063.2,0.001]
[1771056311738,1e-08,2063.5,2063.2,0.001]
[1771056312234,1e-08,2063.5,2063.0,0.001]
[1771056312733,1.21141638,2063.8,2063.0,0.001]
[1771056312948,2.487,2063.7,2063.0,0.001]
[1771056313348,1.21147509,2063.6,2063.0,0.001]
[1771056315354,1.76775592,2063.6,2063.0,0.001]
[1771056315668,1.21147509,2063.6,2063.0,0.001]
[1771056316653,4.25471872,2063.7,2063.0,0.001]
[1771056317872,0.55628083,2063.6,2063.0,0.001]
[1771056319669,3.69843789,2063.7,2063.0,0.001]
[1771056320575,1.21143789,2063.7,2063.0,0.53222123]
[1771056320871,4.25571872,2063.7,2063.0,0.001]
[1771056321273,0.55628083,2063.6,2063.0,0.001]
[1771056322349,3.69943789,2063.7,2063.0,0.001]
[1771056326261,4.25571872,2063.7,2063.0,0.001]
[1771056328501,3.69943789,2063.7,2063.1,0.53122123]
[1771056328791,3.69943789,2063.7,2063.0,0.001]
[1771056328963,4.25571872,2063.7,2063.0,0.001]
[1771056332660,0.48778676,2063.5,2063.0,0.001]
[1771056333467,1.21159251,2063.4,2063.0,0.001]
[1771056334708,1.69937927,2063.4,2063.0,0.001]
[1771056335688,2.488,2063.3,2063.0,0.001]
[1771056337894,1.21170996,2063.2,2063.0,0.001]
[1771056340003,1.71852339,2063.2,2063.0,0.001]
[1771056342599,1.71852339,2063.2,2062.7,0.001]
[1771056342600,0.50681343,2063.1,2062.7,0.001]
[1771056345015,1.71864086,2063.0,2062.7,0.001]
[1771056345176,2.488,2062.9,2062.7,0.001]
[1771056346273,2.99481343,2062.9,2062.7,0.001]
[1771056347882,2.488,2062.9,2062.7,0.001]
[1771056352784,2.488,2063.0,2062.7,0.5269677]
[1771056353178,2.488,2063.0,2062.7,0.001]
[1771056353381,2.99481343,2063.0,2062.7,0.001]
[1771056353806,0.50681343,2062.9,2062.5,0.001]
[1771056354005,2.488,2063.0,2062.5,0.001]
[1771056354209,3.69982837,2063.0,2062.5,0.5269677]
[1771056354905,2.488,2063.0,2062.5,0.5269677]
[1771056355112,6.38,2063.2,2062.5,0.5269677]
[1771056355286,2.488,2063.0,2062.5,0.5269677]
[1771056356309,2.488,2063.0,2062.5,0.001]
[1771056356614,2.488,2063.0,2062.5,0.5269677]
[1771056358815,2.488,2063.0,2062.5,0.001]
[1771056358816,4.20664328,2063.0,2062.5,0.001]
[1771056361615,0.49328603,2062.8,2062.5,0.001]
[1771056363219,1.7052714,2062.8,2062.5,0.001]
[1771056365503,14.44286698,2062.9,2062.5,0.001]
[1771056367103,13.23094903,2062.9,2062.5,0.001]
[1771056367610,4.19315388,2063.0,2062.5,0.001]
[1771056369429,2.98128603,2063.0,2062.5,0.001]
[1771056369795,4.19311571,2063.0,2062.5,0.001]
[1771056373644,2.488,2063.0,2062.5,0.47651789]
[1771056374121,1.21180048,2063.1,2062.5,0.47651789]
[1771056374329,2.488,2062.9,2062.5,0.47651789]
[1771056374626,2.488,2062.9,2062.6,0.47551789]
[1771056375697,2.488,2062.9,2062.5,0.001]
[1771056376128,2.488,2062.9,2062.5,0.47651789]
[1771056376325,2.488,2062.9,2062.5,1.68863213]
[1771056377006,7.2503084,2064.6,2063.1,1.08312268]
[1771056377330,0.497,2065.4,2064.7,0.47551789]
[1771056377537,0.497,2065.4,2064.7,13.70646692]
[1771056377705,0.497,2065.4,2064.5,13.23094903]
[1771056377912,0.497,2065.4,2064.5,13.70646692]
[1771056378107,0.497,2065.4,2064.6,0.47551789]
[1771056379337,0.497,2065.4,2064.7,1.21082966]
[1771056379539,1.70742164,2065.4,2064.7,1.21082966]
[1771056379738,0.497,2065.4,2064.7,1.68634755]
[1771056380839,2.2007145,2065.4,2064.6,1.21084665]
[1771056381043,2.2007145,2065.4,2064.5,1.68642567]
[1771056381346,0.25268348,2065.6,2064.5,1.68642567]
[1771056381347,0.758,2065.8,2064.8,0.47551789]
[1771056382145,2.98128603,2066.4,2065.2,0.47551789]
[1771056382343,2.488,2066.4,2065.5,0.47551789]
[1771056383243,1.20971644,2066.6,2065.6,0.47551789]
[1771056383452,0.49328603,2066.5,2065.6,0.47551789]
[1771056383617,1.20971644,2066.6,2065.6,0.47551789]
[1771056383950,1.34850369,2066.7,2065.6,0.47551789]
[1771056384444,0.49328603,2066.6,2065.6,0.47551789]
[1771056384653,1.34850369,2066.7,2065.6,0.47551789]
[1771056384948,1.20778781,2069.9,2066.9,0.47551789]
[1771056385148,0.50128345,2069.8,2068.2,16.95382136]
[1771056385348,0.50128345,2069.6,2068.3,1.20872213]
[1771056385517,0.50128345,2069.4,2068.3,1.20872213]
[1771056385714,0.545,2069.5,2068.4,0.47551789]
[1771056385945,0.545,2069.5,2068.2,1.20877411]
[1771056386160,1.04628345,2069.5,2068.2,1.20877411]
[1771056386348,0.50128345,2069.9,2068.2,1.684292]
[1771056386649,0.50128345,2069.9,2068.5,0.47551789]
[1771056386848,0.50128345,2069.9,2068.6,2.033]
[1771056387047,0.50128345,2069.9,2068.7,0.47551789]
[1771056387251,1.20784616,2069.8,2068.7,1.68398089]
[1771056387450,1.20784616,2069.8,2068.7,1.208463]
[1771056387642,1.70912961,2069.8,2068.7,1.208463]
[1771056387959,1.70912961,2069.8,2068.4,1.208626]
[1771056387960,0.50128345,2069.7,2068.4,1.208626]
[1771056388454,1.70908076,2069.9,2068.6,0.47551789]
[1771056388755,0.50128345,2069.8,2068.6,0.47551789]
[1771056389145,0.50128345,2069.8,2068.4,1.208626]
[1771056389356,0.50128345,2069.6,2068.4,1.208626]
[1771056390237,0.50128345,2069.6,2068.3,1.20868067]
[1771056390635,0.50128345,2069.6,2067.7,0.47551789]
[1771056390636,0.50128345,2069.4,2067.7,0.47551789]
[1771056390851,0.50128345,2069.4,2067.8,1.20899552]
[1771056391052,1.04338757,2069.2,2067.7,0.47551789]
[1771056391251,1.04338757,2069.2,2067.7,1.20906373]
[1771056391469,1.04338757,2069.0,2067.5,1.20918984]
[1771056391769,1.04338757,2068.8,2067.5,1.20918984]
[1771056392440,0.18275753,2070.0,2069.0,1.10339974]
[1771056392629,0.0011,2070.3,2069.5,1.10339974]
[1771056393130,0.0011,2070.3,2069.5,3.58739974]
[1771056393332,0.0011,2070.3,2069.5,1.10339974]
[1771056393533,0.0011,2070.3,2069.6,1.20796289]
[1771056394171,0.0011,2070.3,2069.0,1.10339974]
[1771056394370,0.0011,2070.3,2069.1,4.45739974]
[1771056394732,0.0011,2070.3,2069.1,1.10339974]
[1771056394935,0.0011,2070.3,2069.0,16.47830347]
[1771056395129,0.0011,2070.3,2069.0,1.10339974]
[1771056395334,0.0011,2070.3,2069.2,1.10339974]
[1771056395561,0.0011,2070.3,2069.3,1.20813801]
[1771056396452,1.04448757,2070.3,2068.7,1.20848842]
[1771056396765,1.04338757,2070.1,2068.7,1.20848842]
[1771056397859,1.20772946,2070.0,2068.7,1.20848842]
[1771056398038,1.20772946,2070.0,2068.2,15.15057113]
[1771056398039,1.04338757,2069.7,2068.3,1.20872213]
[1771056398365,1.04338757,2069.7,2068.3,2.31212187]
[1771056399157,1.04338757,2069.7,2068.3,1.20872213]
[1771056399931,1.20796289,2069.6,2068.3,2.30349383]
[1771056400534,1.20761914,2070.2,2069.0,15.15057113]
[1771056400844,1.20761914,2070.2,2068.8,1.0947717]
[1771056401033,2.2851191,2070.2,2068.8,1.0947717]
[1771056401961,1.07749996,2070.1,2068.9,1.20837159]
[1771056403940,1.20772946,2070.0,2068.9,1.20837159]
[1771056404747,2.28522942,2070.0,2068.9,1.20837159]
[1771056406767,1.20761279,2070.2,2069.0,1.0947717]
[1771056407068,2.28511275,2070.2,2069.0,1.0947717]
[1771056407437,1.07749996,2070.1,2068.9,1.20837159]
[1771056408368,2.28522942,2070.0,2068.8,5.92825809]
[1771056408869,1.07749996,2069.9,2068.8,4.83348639]
[1771056409779,0.74777632,2072.7,2069.9,15.15057113]
[1771056409941,0.003,2074.2,2073.4,15.15057113]
[1771056410138,0.003,2074.2,2072.8,1.69977309]
[1771056410139,2.89371286,2076.7,2073.6,5.113]
[1771056410344,1.44735877,2077.1,2075.5,15.15057113]
[1771056410345,0.003,2077.1,2075.5,15.15057113]
[1771056410563,0.6071454,2078.1,2076.6,0.18685624]
[1771056410788,2.50697751,2079.0,2077.7,15.15057113]
[1771056411011,1.20212276,2079.7,2077.9,0.22190576]
[1771056411283,4.80317835,2082.0,2079.6,16.23496181]
[1771056411613,1.18004906,2083.6,2080.2,0.52709973]
[1771056411909,16.4135386,2086.6,2083.1,16.23496181]
[1771056412062,1.1985372,2085.9,2084.2,0.17837747]
[1771056412361,5.55119005,2086.1,2083.5,0.20314504]
[1771056412559,30.078706,2085.4,2081.0,0.147456]
[1771056412748,0.15067409,2085.4,2083.4,18.845564]
[1771056412948,1.2444504,2084.8,2081.8,16.23496181]
[1771056413149,2.297,2086.0,2082.2,1.0947717]
[1771056413341,1.16961105,2085.5,2082.4,1.0947717]
[1771056413541,0.7573262,2086.1,2080.0,3.17196218]
[1771056413754,0.30735659,2086.7,2080.7,1.0947717]
[1771056413969,0.1388033,2087.5,2081.2,1.0947717]
[1771056414171,2.26438275,2086.9,2080.1,15.38382477]
[1771056414481,0.1388033,2091.6,2082.0,1.0947717]
[1771056414780,0.1388033,2091.6,2080.5,5.19666311]
[1771056414781,114.16834395,2090.0,2089.7,0.24987569]
[1771056414989,3.94395998,2089.9,2089.2,0.25008338]
[1771056415190,1.59035139,2089.9,2087.3,0.29909497]
[1771056415394,1.07749996,2089.9,2086.7,1.0947717]
[1771056415554,1.07749996,2088.5,2085.8,21.407803]
[1771056415907,1.07749996,2088.2,2085.4,1.0947717]
[1771056416078,3.342,2088.4,2084.4,8.35412217]
[1771056416079,1.56098392,2088.9,2084.6,1.0947717]
[1771056416393,1.376,2088.4,2085.5,0.1024]
[1771056416557,1.376,2088.4,2084.8,1.0947717]
[1771056416757,6.231,2088.3,2084.7,1.19921331]
[1771056416958,51.336599,2087.9,2084.2,4.7973135]
[1771056417181,0.1024,2087.0,2084.2,4.07935664]
[1771056417381,4.29791317,2087.1,2083.3,0.79509693]
[1771056417382,0.1024,2086.6,2083.3,0.79509693]
[1771056417591,3.34,2086.9,2082.6,1.0947717]
[1771056417592,5.39268487,2085.8,2082.6,1.20013441]
[1771056417889,0.1024,2086.5,2082.6,1.20013441]
[1771056417890,5.39268487,2085.6,2082.6,1.20013441]
[1771056418088,5.39268487,2085.3,2082.4,0.32231962]
[1771056418288,5.39268487,2084.5,2082.5,1.20048019]
[1771056418488,5.39268487,2084.3,2081.8,1.20088385]
[1771056418658,5.39268487,2083.7,2080.8,1.20146097]
[1771056418856,5.39268487,2083.5,2080.9,4.80541674]
[1771056419058,5.39268487,2083.3,2080.8,1.20146097]
[1771056419265,0.1024,2081.6,2078.0,0.01610951]
[1771056419493,5.39268487,2081.4,2079.3,2.04409375]
[1771056419656,5.39268487,2081.0,2078.3,4.81156955]
[1771056419861,5.39268487,2080.8,2078.4,1.20284834]
[1771056420201,5.39268487,2079.3,2078.0,0.01610951]
[1771056420490,51.336599,2078.5,2077.2,1.20354323]
[1771056420676,0.1024,2079.9,2077.2,1.20354323]
[1771056420677,3.335,2078.4,2077.2,1.20354323]
[1771056420878,3.335,2078.3,2077.2,1.20354323]
[1771056421209,0.866,2078.3,2077.2,1.20354323]
[1771056421719,6.38479526,2078.9,2076.7,1.20381637]
[1771056421990,0.640056,2077.7,2076.0,1.20423892]
[1771056422178,0.640056,2077.2,2075.1,8.122]
[1771056422510,6.38479526,2077.3,2075.3,30.0]
[1771056422682,6.38479526,2077.3,2075.3,25.326]
[1771056422880,0.1024,2078.2,2075.3,12.611]
[1771056423278,6.38479526,2078.1,2075.4,30.0]
[1771056423608,0.866,2078.0,2075.4,30.0]
[1771056423816,6.38479526,2078.9,2075.6,0.1024]
[1771056423992,6.38479526,2078.9,2076.0,0.1024]
[1771056424191,6.38479526,2078.9,2076.2,0.1024]
[1771056424397,1.44127531,2081.5,2076.2,0.1024]
[1771056424398,0.866,2078.8,2076.8,0.1024]
[1771056424592,0.866,2078.8,2077.2,30.0]
[1771056424801,0.866,2078.8,2076.8,0.1024]
[1771056425005,0.866,2078.8,2076.6,30.0]
[1771056425210,0.1024,2079.6,2076.6,0.28925624]
[1771056425408,6.48719526,2079.4,2076.4,27.154]
[1771056425611,6.38479526,2079.0,2076.3,1.20406492]
[1771056425816,6.38479526,2079.0,2076.4,30.0]
[1771056426015,0.147456,2081.1,2076.3,1.20406492]
[1771056426016,6.38479526,2078.6,2076.3,1.20406492]
[1771056426321,0.1024,2078.7,2075.4,6.6866107]
[1771056426322,6.38479526,2078.4,2075.6,4.81769398]
[1771056426623,0.866,2078.3,2076.1,2.31703025]
[1771056426793,6.38479526,2079.2,2076.6,0.28925624]
[1771056426988,1.068,2078.9,2076.9,30.0]
[1771056427188,2.91,2078.8,2076.9,30.0]
[1771056427419,2.91,2078.8,2076.4,27.225]
[1771056427632,2.91,2078.8,2075.4,3.07317065]
[1771056427633,6.38479526,2078.7,2075.7,30.0]
[1771056427917,6.38479526,2078.3,2075.7,26.752]
[1771056428085,6.38479526,2078.1,2075.7,26.752]
[1771056428287,6.38479526,2078.1,2076.1,1.20418091]
[1771056428511,6.38479526,2078.1,2076.2,4.745]
[1771056428512,0.866,2078.0,2076.2,4.745]
[1771056428681,0.866,2077.9,2076.2,4.745]
[1771056429085,0.866,2077.9,2075.7,4.81672366]
[1771056429086,0.1024,2077.8,2075.2,4.81836166]
[1771056429292,6.38479526,2077.7,2075.4,30.0]
[1771056429816,6.38479526,2077.7,2075.3,1.20464511]
[1771056429817,6.38479526,2078.5,2076.3,10.21670714]
[1771056430118,6.38479526,2078.5,2076.4,27.947]
[1771056430322,0.866,2078.4,2076.7,1.203833]
[1771056430620,0.866,2078.3,2076.7,1.203833]
[1771056430819,2.47,2078.6,2076.1,30.0]
[1771056430820,0.866,2078.2,2076.1,30.0]
[1771056431018,0.866,2078.2,2076.1,6.402]
[1771056431386,6.38479526,2078.1,2076.0,0.001]
[1771056431693,3.336,2078.0,2076.1,30.0]
[1771056431898,3.336,2078.0,2076.1,12.177]
[1771056432099,9.72079526,2078.0,2076.0,0.001]
[1771056432500,0.866,2078.2,2076.4,0.1024]
[1771056432700,0.866,2078.2,2076.5,30.0]
[1771056432901,0.0011,2078.7,2076.6,30.1024]
[1771056433120,0.866,2078.5,2076.7,30.0]
[1771056433294,0.866,2078.5,2076.7,0.1024]
[1771056433490,0.866,2078.5,2076.8,14.686]
[1771056433690,0.866,2078.5,2076.4,30.0]
[1771056433899,0.866,2078.4,2076.6,30.0]
[1771056434228,0.866,2078.4,2076.2,0.1024]
[1771056434393,0.866,2078.4,2076.4,1.20400693]
[1771056434725,3.336,2078.3,2076.4,1.20400693]
[1771056435021,6.38479526,2078.2,2076.4,1.20400693]
[1771056435326,3.336,2078.1,2076.4,1.20400693]
[1771056435521,3.336,2078.0,2076.4,1.20400693]
[1771056435724,9.72079526,2078.0,2076.4,1.20400693]
[1771056435944,6.38479526,2077.9,2076.4,1.20400693]
[1771056436093,0.003,2078.4,2076.5,30.0]
[1771056436292,0.003,2078.4,2076.6,0.40918971]
[1771056436518,0.003,2078.4,2076.8,1.20377503]
[1771056436819,0.866,2078.3,2076.8,1.20377503]
[1771056437019,0.003,2078.4,2076.8,1.20377503]
[1771056437322,0.8671,2078.7,2077.0,13.473]
[1771056437533,0.8671,2078.7,2077.1,0.41129682]
[1771056437736,0.8671,2078.9,2077.3,30.0]
[1771056438034,0.866,2078.9,2077.5,30.0]
[1771056438234,0.866,2079.0,2077.6,0.41129682]
[1771056438403,1.20255904,2078.9,2077.7,0.41129682]
[1771056438607,3.336,2078.8,2077.4,1.20337798]
[1771056438807,3.336,2078.8,2077.5,0.41388198]
[1771056439160,6.38479526,2078.7,2077.1,1.20360117]
[1771056439308,6.38479526,2078.7,2077.2,0.41669556]
[1771056439630,6.38479526,2078.7,2077.3,0.41669556]
[1771056439823,0.866,2078.6,2077.1,1.20360117]
[1771056440000,0.866,2078.6,2077.2,0.4167458]
[1771056440206,0.866,2078.5,2077.3,0.41749936]
[1771056440511,0.866,2078.5,2077.5,1.20336943]
[1771056440838,2.47,2078.9,2077.2,1.20354323]
[1771056440839,1.20277212,2078.6,2077.2,1.20354323]
[1771056441033,0.866,2078.5,2077.3,0.4177349]
[1771056441280,0.866,2078.5,2077.2,1.20354323]
[1771056442603,1.20284834,2078.4,2076.7,29.885]
[1771056442807,1.20284834,2078.4,2076.8,0.41797872]
[1771056443031,7.25079526,2078.7,2076.9,0.41797872]
[1771056443235,7.25079526,2078.7,2077.0,0.41797872]
[1771056443236,8.45348246,2078.7,2077.0,0.41797872]
[1771056443441,34.37631378,2080.0,2077.1,0.41797872]
[1771056443620,6.38479526,2079.3,2077.2,0.41797872]
[1771056443802,4.80819023,2079.8,2076.9,0.1024]
[1771056444010,6.38479526,2079.6,2077.2,6.20699232]
[1771056444233,6.38479526,2079.6,2077.3,0.41896749]
[1771056444547,7.58700733,2079.5,2077.5,1.20336943]
[1771056444839,10.20371439,2079.3,2077.5,1.20336943]
[1771056445007,10.20371439,2079.3,2076.8,0.866]
[1771056445008,6.38479526,2079.2,2063.9,0.39]
[1771056445209,6.38479526,2078.3,2076.1,1.20418091]
[1771056445422,6.38479526,2078.1,2076.9,0.001]
[1771056445617,3.336,2078.2,2076.0,0.001]
[1771056445618,6.38479526,2077.9,2076.0,0.001]